fUST/lending_fUST_20250724
["ID","MTS","AMOUNT","RATE_DAILY","PERIOD"]
[374500828,1753326642776,-478.54,0.00019178,2]
[374500830,1753326642785,-1865.76,0.00019178,2]
[374500832,1753326642795,-352.70812028,0.00019178,2]
[374500834,1753326642806,-460.0,0.00019178,2]
[374500836,1753326642816,-460.0,0.00019178,2]
[374500838,1753326642825,-460.0,0.00019178,2]
[374500840,1753326642835,-460.0,0.00019178,2]
[374500842,1753326642844,-460.0,0.00019178,2]
[374500844,1753326642854,-460.0,0.00019178,2]
[374500846,1753326642863,-752.66,0.00019178,2]
[374500848,1753326642873,-460.0,0.00019178,2]
[374500850,1753326642882,-502.720942,0.00019178,2]
[374500852,1753326642892,-460.0,0.00019178,2]
[374500854,1753326642904,-534.92,0.00019178,2]
[374500856,1753326642913,-460.0,0.00019178,2]
[374500858,1753326642924,-460.0,0.00019178,2]
[374500860,1753326642934,-460.0,0.00019178,2]
[374500862,1753326642944,-470.53064523,0.00019178,2]
[374500874,1753326643039,-460.0,0.00019178,2]
[374500876,1753326643059,-460.0,0.00019178,2]
[374500879,1753326643069,-463.14373433,0.00019178,2]
[374500881,1753326643079,-460.0,0.00019178,2]
[374500883,1753326643089,-460.0,0.00019178,2]
[374500884,1753326643098,-526.0849725,0.00019178,2]
[374500886,1753326643112,-462.86795479,0.00019178,2]
[374500888,1753326643122,-460.0,0.00019178,2]
[374500890,1753326643131,-499.54,0.00019178,2]
[374500892,1753326643140,-1307.06,0.00019178,2]
[374500894,1753326643149,-460.0,0.00019178,2]
[374500896,1753326643159,-460.0,0.00019178,2]
[374500898,1753326643168,-460.0,0.00019178,2]
[374500900,1753326643177,-460.0,0.00019178,2]
[374500902,1753326643186,-463.36,0.00019178,2]
[374500904,1753326643196,-460.0,0.00019178,2]
[374500906,1753326643205,-466.14026298,0.00019178,2]
[374500908,1753326643215,-460.0,0.00019178,2]
[374500910,1753326643224,-460.0,0.00019178,2]
[374500912,1753326643233,-460.0,0.00019178,2]
[374500914,1753326643242,-462.83367863,0.00019178,2]
[374500916,1753326643252,-460.0,0.00019178,2]
[374500918,1753326643261,-460.0,0.00019178,2]
[374500920,1753326643271,-460.0,0.00019178,2]
[374500922,1753326643282,-1937.32,0.00019178,2]
[374500924,1753326643291,-460.0,0.00019178,2]
[374500926,1753326643301,-460.0,0.00019178,2]
[374500928,1753326643310,-460.0,0.00019178,2]
[374500930,1753326643319,-539.91,0.00019178,2]
[374500932,1753326643330,-498.79196115,0.00019178,2]
[374500934,1753326643339,-461.13877449,0.00019178,2]
[374500936,1753326643348,-460.0,0.00019178,2]
[374500938,1753326643358,-443.61684811,0.00019178,2]
[374500940,1753326643367,-465.23158807,0.00019178,2]
[374500942,1753326643376,-460.0,0.00019178,2]
[374500944,1753326643386,-460.0,0.00019178,2]
[374500946,1753326643395,-464.32214727,0.00019178,2]
[374500948,1753326643405,-460.0,0.00019178,2]
[374500950,1753326643414,-460.0,0.00019178,2]
[374500952,1753326643424,-460.0,0.00019178,2]
[374500954,1753326643434,-1711.31,0.00019178,2]
[374500956,1753326643444,-460.0,0.00019178,2]
[374500958,1753326643454,-690.55,0.00019178,2]
[374500960,1753326643463,-1189.16,0.00019178,2]
[374500962,1753326643472,-5513.69,0.00019178,2]
[374500964,1753326643482,-463.75369938,0.00019178,2]
[374500966,1753326643491,-460.0,0.00019178,2]
[374500968,1753326643501,-460.0,0.00019178,2]
[374500970,1753326643510,-460.0,0.00019178,2]
[374500972,1753326643519,-460.0,0.00019178,2]
[374500974,1753326643529,-460.0,0.00019178,2]
[374500976,1753326643538,-460.0,0.00019178,2]
[374500977,1753326643547,-218.68448043,0.00019178,2]
[374500979,1753326643557,-460.0,0.00019178,2]
[374500981,1753326643566,-575.49148594,0.00019178,2]
[374500983,1753326643576,-460.0,0.00019178,2]
[374500985,1753326643585,-460.0,0.00019178,2]
[374500987,1753326643596,-460.0,0.00019178,2]
[374500990,1753326643605,-239.75690095,0.00019178,2]
[374500991,1753326643615,-460.0,0.00019178,2]
[374500994,1753326643625,-460.0,0.00019178,2]
[374500995,1753326643637,-460.0,0.00019178,2]
[374500997,1753326643647,-460.0,0.00019178,2]
[374500999,1753326643657,-460.0,0.00019178,2]
[374501001,1753326643666,-772.74,0.00019178,2]
[374501004,1753326643678,-358.20810541,0.00019178,2]
[374501006,1753326643687,-469.61611987,0.00019178,2]
[374501008,1753326643697,-466.98934807,0.00019178,2]
[374501010,1753326643706,-463.2607434,0.00019178,2]
[374501012,1753326643717,-460.0,0.00019178,2]
[374501014,1753326643727,-460.0,0.00019178,2]
[374501016,1753326643737,-460.0,0.00019178,2]
[374501018,1753326643746,-460.0,0.00019178,2]
[374501020,1753326643755,-438.82444632,0.00019178,2]
[374501022,1753326643765,-460.0,0.00019178,2]
[374501024,1753326643775,-460.0,0.00019178,2]
[374501026,1753326643784,-460.0,0.00019178,2]
[374501028,1753326643794,-460.0,0.00019178,2]
[374501030,1753326643803,-460.0,0.00019178,2]
[374501032,1753326643812,-460.0,0.00019178,2]
[374501034,1753326643821,-463.11919013,0.00019178,2]
[374501036,1753326643831,-460.0,0.00019178,2]
[374501038,1753326643840,-407.14285102,0.00019178,2]
[374501040,1753326643852,-460.0,0.00019178,2]
[374501042,1753326643862,-460.0,0.00019178,2]
[374501044,1753326643872,-460.0,0.00019178,2]
[374501046,1753326643882,-460.0,0.00019178,2]
[374501048,1753326643891,-460.0,0.00019178,2]
[374501050,1753326643900,-460.0,0.00019178,2]
[374501052,1753326643910,-460.0,0.00019178,2]
[374501054,1753326643920,-460.0,0.00019178,2]
[374501056,1753326643929,-460.0,0.00019178,2]
[374501058,1753326643939,-500.0,0.00019178,2]
[374501060,1753326643949,-640.052895,0.00019178,2]
[374501062,1753326643958,-666.0,0.00019178,2]
[374501064,1753326643968,-154.7914252,0.0001926,2]
[374501066,1753326643978,-153.0,0.0001926,2]
[374501068,1753326643987,-153.0,0.0001926,2]
[374501070,1753326643997,-151.0,0.00019306,2]
[374501072,1753326644008,-151.0,0.00019306,2]
[374501074,1753326644017,-151.0,0.00019306,2]
[374501076,1753326644026,-151.0,0.00019306,2]
[374501078,1753326644036,-215.0738,0.00019306,2]
[374501080,1753326644046,-151.0,0.00019306,2]
[374501082,1753326644055,-151.0,0.00019306,2]
[374501084,1753326644064,-151.0,0.00019306,2]
[374501086,1753326644074,-157.57536796,0.00019306,2]
[374501088,1753326644084,-25000.0,0.00019306,2]
[374501090,1753326644093,-15684.19055972,0.00019306,2]
[374501092,1753326644104,-269.164669,0.00019329,2]
[374501094,1753326644114,-269.164669,0.00019329,2]
[374501096,1753326644123,-151.0,0.00019329,2]
[374501098,1753326644133,-151.0,0.00019329,2]
[374501100,1753326644142,-151.0,0.00019329,2]
[374501102,1753326644151,-502.725437,0.00019329,2]
[374501104,1753326644160,-502.725437,0.00019329,2]
[374501106,1753326644170,-151.0,0.00019329,2]
[374501108,1753326644180,-184.547326,0.00019329,2]
[374501111,1753326644189,-184.547326,0.00019329,2]
[374501114,1753326644198,-447.345856,0.00019329,2]
[374501116,1753326644211,-447.345856,0.00019329,2]
[374501118,1753326644226,-6384.12973345,0.00019329,2]
[374501140,1753326644429,-32.04248,0.00019329,2]
[374501154,1753326644550,-36223.63798772,0.00019329,2]
[374501156,1753326644559,-483.12259241,0.0001942,2]
[374501158,1753326644569,-269.164669,0.00019452,2]
[374501160,1753326644579,-269.164669,0.00019452,2]
[374501162,1753326644589,-460.0,0.00019452,2]
[374501164,1753326644599,-462.96762355,0.00019452,2]
[374501166,1753326644608,-151.0,0.00019452,2]
[374501168,1753326644618,-460.0,0.00019452,2]
[374501170,1753326644627,-460.0,0.00019452,2]
[374501171,1753326644640,-463.19669547,0.00019452,2]
[374501172,1753326644649,-151.0,0.00019452,2]
[374501173,1753326644659,-460.0,0.00019452,2]
[374501174,1753326644669,-151.0,0.00019452,2]
[374501175,1753326644678,-506.64214284,0.00019452,2]
[374501176,1753326644688,-455.14019,0.00019452,2]
[374501177,1753326644701,-460.0,0.00019452,2]
[374501178,1753326644713,-559.00451697,0.00019452,2]
[374501179,1753326644723,-502.725437,0.00019452,2]
[374501180,1753326644733,-502.725437,0.00019452,2]
[374501181,1753326644743,-465.18390661,0.00019452,2]
[374501182,1753326644752,-460.0,0.00019452,2]
[374501183,1753326644761,-460.0,0.00019452,2]
[374501184,1753326644771,-151.0,0.00019452,2]
[374501185,1753326644780,-460.0,0.00019452,2]
[374501186,1753326644790,-460.0,0.00019452,2]
[374501187,1753326644799,-461.36614137,0.00019452,2]
[374501188,1753326644809,-466.36985913,0.00019452,2]
[374501189,1753326644818,-460.0,0.00019452,2]
[374501190,1753326644828,-460.0,0.00019452,2]
[374501191,1753326644836,-461.30363361,0.00019452,2]
[374501192,1753326644846,-184.547326,0.00019452,2]
[374501193,1753326644855,-184.547326,0.00019452,2]
[374501195,1753326644864,-460.0,0.00019452,2]
[374501197,1753326644873,-460.0,0.00019452,2]
[374501199,1753326644883,-460.0,0.00019452,2]
[374501201,1753326644893,-460.0,0.00019452,2]
[374501203,1753326644902,-447.345856,0.00019452,2]
[374501205,1753326644911,-996.93741653,0.00019452,2]
[374501207,1753326644921,-211.07966348,0.00019452,2]
[374501208,1753326644930,-447.345856,0.00019452,2]
[374501209,1753326644939,-460.0,0.00019452,2]
[374501210,1753326644950,-470.37065641,0.00019452,2]
[374501211,1753326644960,-460.0,0.00019452,2]
[374501212,1753326644969,-460.0,0.00019452,2]
[374501213,1753326644978,-560.74444434,0.00019452,2]
[374501214,1753326644988,-460.0,0.00019452,2]
[374501215,1753326644998,-460.0,0.00019452,2]
[374501216,1753326645008,-460.0,0.00019452,2]
[374501217,1753326645018,-460.0,0.00019452,2]
[374501218,1753326645027,-1399.2,0.00019452,2]
[374501219,1753326645037,-460.0,0.00019452,2]
[374501220,1753326645047,-290.74670208,0.00019452,2]
[374501221,1753326645056,-460.0,0.00019452,2]
[374501222,1753326645066,-460.0,0.00019452,2]
[374501223,1753326645076,-460.0,0.00019452,2]
[374501224,1753326645085,-1806.58,0.00019452,2]
[374501225,1753326645094,-651.5,0.00019452,2]
[374501226,1753326645103,-460.0,0.00019452,2]
[374501227,1753326645112,-460.0,0.00019452,2]
[374501228,1753326645121,-460.0,0.00019452,2]
[374501229,1753326645131,-460.0,0.00019452,2]
[374501230,1753326645140,-460.0,0.00019452,2]
[374501231,1753326645149,-460.0,0.00019452,2]
[374501234,1753326645160,-460.0,0.00019452,2]
[374501235,1753326645271,-460.0,0.00019452,2]
[374501236,1753326645282,-460.0,0.00019452,2]
[374501237,1753326645291,-460.0,0.00019452,2]
[374501238,1753326645301,-460.0,0.00019452,2]
[374501239,1753326645310,-467.24073675,0.00019452,2]
[374501240,1753326645319,-460.0,0.00019452,2]
[374501241,1753326645328,-460.0,0.00019452,2]
[374501242,1753326645337,-419.96786551,0.00019452,2]
[374501243,1753326645346,-584.77286401,0.00019452,2]
[374501244,1753326645355,-468.31810975,0.00019452,2]
[374501245,1753326645365,-460.0,0.00019452,2]
[374501246,1753326645375,-460.0,0.00019452,2]
[374501247,1753326645384,-821.71,0.00019452,2]
[374501248,1753326645394,-460.0,0.00019452,2]
[374501249,1753326645403,-460.0,0.00019452,2]
[374501250,1753326645413,-460.0,0.00019452,2]
[374501251,1753326645422,-460.0,0.00019452,2]
[374501252,1753326645431,-460.0,0.00019452,2]
[374501253,1753326645440,-466.60950097,0.00019452,2]
[374501254,1753326645450,-460.0,0.00019452,2]
[374501255,1753326645459,-246.38976069,0.00019452,2]
[374501256,1753326645468,-460.0,0.00019452,2]
[374501257,1753326645477,-460.0,0.00019452,2]
[374501258,1753326645487,-472.56095166,0.00019452,2]
[374501259,1753326645497,-460.0,0.00019452,2]
[374501260,1753326645505,-500.0,0.00019452,2]
[374501261,1753326645515,-460.0,0.00019452,2]
[374501262,1753326645524,-470.89060187,0.00019452,2]
[374501263,1753326645534,-151.0,0.00019452,2]
[374501264,1753326645543,-151.0,0.00019452,2]
[374501265,1753326645552,-606.90097164,0.00019452,2]
[374501266,1753326645562,-460.0,0.00019452,2]
[374501267,1753326645571,-151.0,0.00019452,2]
[374501268,1753326645581,-464.49353918,0.00019452,2]
[374501269,1753326645590,-460.0,0.00019452,2]
[374501270,1753326645600,-501.22437407,0.00019452,2]
[374501271,1753326645609,-460.0,0.00019452,2]
[374501272,1753326645619,-460.0,0.00019452,2]
[374501273,1753326645629,-416.3213495,0.00019452,2]
[374501274,1753326645642,-460.0,0.00019452,2]
[374501275,1753326645652,-460.0,0.00019452,2]
[374501276,1753326645662,-189.64200099,0.00019452,2]
[374501277,1753326645671,-505.84017674,0.00019452,2]
[374501278,1753326645683,-460.0,0.00019452,2]
[374501279,1753326645693,-464.35056706,0.00019452,2]
[374501280,1753326645703,-460.0,0.00019452,2]
[374501281,1753326645715,-460.0,0.00019452,2]
[374501282,1753326645724,-151.5993117,0.00019452,2]
[374501283,1753326645735,-470.66558451,0.00019452,2]
[374501284,1753326645744,-471.28412654,0.00019452,2]
[374501285,1753326645753,-460.0,0.00019452,2]
[374501286,1753326645762,-460.0,0.00019452,2]
[374501287,1753326645772,-460.0,0.00019452,2]
[374501288,1753326645782,-460.0,0.00019452,2]
[374501289,1753326645791,-507.0799608,0.00019452,2]
[374501290,1753326645800,-460.0,0.00019452,2]
[374501291,1753326645810,-460.0,0.00019452,2]
[374501292,1753326645819,-460.0,0.00019452,2]
[374501293,1753326645829,-460.0,0.00019452,2]
[374501294,1753326645839,-460.0,0.00019452,2]
[374501295,1753326645849,-460.0,0.00019452,2]
[374501296,1753326645858,-262.29962447,0.00019452,2]
[374501297,1753326645867,-460.0,0.00019452,2]
[374501298,1753326645877,-460.0,0.00019452,2]
[374501299,1753326645886,-305.8984454,0.00019452,2]
[374501300,1753326645902,-158.49232503,0.00019452,2]
[374501301,1753326645911,-471.26326986,0.00019452,2]
[374501302,1753326645920,-460.0,0.00019452,2]
[374501303,1753326645930,-424.35006528,0.00019452,2]
[374501304,1753326646052,-540.42283679,0.00019178,2]
[374501305,1753326646062,-41.85239633,0.00019452,2]
[374501306,1753326646071,-460.0,0.00019452,2]
[374501307,1753326646080,-460.0,0.00019452,2]
[374501308,1753326646090,-460.0,0.00019452,2]
[374501309,1753326646099,-460.0,0.00019452,2]
[374501310,1753326646109,-460.0,0.00019452,2]
[374501311,1753326646118,-460.0,0.00019452,2]
[374501312,1753326646127,-460.0,0.00019452,2]
[374501313,1753326646137,-460.0,0.00019452,2]
[374501314,1753326646147,-460.0,0.00019452,2]
[374501315,1753326646157,-460.0,0.00019452,2]
[374501316,1753326646167,-460.0,0.00019452,2]
[374501317,1753326646176,-460.0,0.00019452,2]
[374501318,1753326646186,-462.7626323,0.00019452,2]
[374501319,1753326646195,-460.0,0.00019452,2]
[374501320,1753326646205,-460.0,0.00019452,2]
[374501321,1753326646214,-460.0,0.00019452,2]
[374501322,1753326646224,-460.0,0.00019452,2]
[374501323,1753326646233,-460.0,0.00019452,2]
[374501324,1753326646243,-460.0,0.00019452,2]
[374501325,1753326646253,-465.49462261,0.00019452,2]
[374501326,1753326646263,-268.53441081,0.00019452,2]
[374501327,1753326646272,-460.0,0.00019452,2]
[374501328,1753326646283,-460.0,0.00019452,2]
[374501329,1753326646292,-460.0,0.00019452,2]
[374501330,1753326646302,-460.0,0.00019452,2]
[374501331,1753326646311,-638.84,0.00019452,2]
[374501332,1753326646320,-460.0,0.00019452,2]
[374501333,1753326646330,-460.0,0.00019452,2]
[374501334,1753326646339,-479.14411973,0.00019452,2]
[374501335,1753326646348,-460.0,0.00019452,2]
[374501336,1753326646359,-460.0,0.00019452,2]
[374501337,1753326646369,-465.76037495,0.00019452,2]
[374501338,1753326646378,-1491.52,0.00019452,2]
[374501339,1753326646387,-465.22221476,0.00019452,2]
[374501340,1753326646396,-460.0,0.00019452,2]
[374501341,1753326646405,-460.0,0.00019452,2]
[374501342,1753326646415,-460.0,0.00019452,2]
[374501343,1753326646424,-3055.59,0.00019452,2]
[374501344,1753326646434,-242.52603922,0.00019452,2]
[374501345,1753326646444,-460.0,0.00019452,2]
[374501346,1753326646454,-460.0,0.00019452,2]
[374501347,1753326646463,-226.61951409,0.00019452,2]
[374501348,1753326646472,-460.0,0.00019452,2]
[374501349,1753326646482,-460.0,0.00019452,2]
[374501350,1753326646491,-464.74751647,0.00019452,2]
[374501351,1753326646500,-5153.85,0.00019452,2]
[374501352,1753326646509,-1524.41,0.00019452,2]
[374501353,1753326646519,-460.0,0.00019452,2]
[374501354,1753326646528,-460.0,0.00019452,2]
[374501355,1753326646537,-460.0,0.00019452,2]
[374501356,1753326646546,-460.0,0.00019452,2]
[374501357,1753326646555,-740.4,0.00019452,2]
[374501358,1753326646564,-603.61216703,0.00019452,2]
[374501359,1753326646574,-460.0,0.00019452,2]
[374501360,1753326646583,-460.0,0.00019452,2]
[374501361,1753326646593,-460.0,0.00019452,2]
[374501362,1753326646602,-460.0,0.00019452,2]
[374501363,1753326646611,-286.52100652,0.00019452,2]
[374501364,1753326646621,-604.46,0.00019452,2]
[374501365,1753326646631,-460.0,0.00019452,2]
[374501366,1753326646646,-189.69919754,0.00019452,2]
[374501368,1753326646655,-460.0,0.00019452,2]
[374501369,1753326646665,-566.58535432,0.00019452,2]
[374501370,1753326646674,-460.0,0.00019452,2]
[374501371,1753326646684,-428.44421975,0.00019452,2]
[374501372,1753326646695,-460.0,0.00019452,2]
[374501373,1753326646704,-335.8184981,0.00019452,2]
[374501374,1753326646715,-158.42053937,0.00019452,2]
[374501375,1753326646725,-473.21117086,0.00019452,2]
[374501376,1753326646734,-465.04621665,0.00019452,2]
[374501377,1753326646743,-460.0,0.00019452,2]
[374501378,1753326646753,-460.0,0.00019452,2]
[374501379,1753326646762,-708.72,0.00019452,2]
[374501380,1753326646771,-460.0,0.00019452,2]
[374501381,1753326646781,-460.0,0.00019452,2]
[374501382,1753326646792,-603.38585314,0.00019452,2]
[374501383,1753326646802,-187.00019039,0.00019452,2]
[374501384,1753326646811,-460.0,0.00019452,2]
[374501385,1753326646820,-460.0,0.00019452,2]
[374501386,1753326646830,-460.0,0.00019452,2]
[374501387,1753326646840,-730.0,0.00019452,2]
[374501388,1753326646849,-425.34364011,0.00019452,2]
[374501389,1753326646858,-460.0,0.00019452,2]
[374501390,1753326646867,-460.0,0.00019452,2]
[374501391,1753326646876,-460.0,0.00019452,2]
[374501392,1753326646886,-218.22790398,0.00019452,2]
[374501393,1753326646895,-959.1,0.00019452,2]
[374501394,1753326646905,-460.0,0.00019452,2]
[374501395,1753326646914,-460.0,0.00019452,2]
[374501396,1753326646923,-460.0,0.00019452,2]
[374501397,1753326646933,-460.0,0.00019452,2]
[374501398,1753326646943,-462.0997012,0.00019452,2]
[374501399,1753326646953,-460.0,0.00019452,2]
[374501400,1753326646963,-2609.7,0.00019452,2]
[374501401,1753326646972,-460.0,0.00019452,2]
[374501402,1753326646981,-784.49,0.00019452,2]
[374501403,1753326646991,-460.0,0.00019452,2]
[374501404,1753326647000,-460.0,0.00019452,2]
[374501405,1753326647010,-465.2759196,0.00019452,2]
[374501406,1753326647018,-478.54,0.00019452,2]
[374501407,1753326647028,-1865.76,0.00019452,2]
[374501408,1753326647037,-460.0,0.00019452,2]
[374501409,1753326647047,-460.0,0.00019452,2]
[374501410,1753326647056,-467.10596505,0.00019452,2]
[374501411,1753326647066,-460.0,0.00019452,2]
[374501412,1753326647075,-460.0,0.00019452,2]
[374501413,1753326647084,-752.66,0.00019452,2]
[374501414,1753326647093,-460.0,0.00019452,2]
[374501415,1753326647103,-534.92,0.00019452,2]
[374501416,1753326647112,-460.0,0.00019452,2]
[374501417,1753326647120,-467.52320075,0.00019452,2]
[374501418,1753326647130,-460.0,0.00019452,2]
[374501419,1753326647141,-460.0,0.00019452,2]
[374501420,1753326647151,-460.0,0.00019452,2]
[374501421,1753326647160,-993.0,0.00019452,2]
[374501422,1753326647170,-460.0,0.00019452,2]
[374501423,1753326647181,-499.54,0.00019452,2]
[374501424,1753326647191,-460.0,0.00019452,2]
[374501425,1753326647201,-1307.06,0.00019452,2]
[374501426,1753326647210,-460.0,0.00019452,2]
[374501427,1753326647219,-460.0,0.00019452,2]
[374501428,1753326647230,-460.0,0.00019452,2]
[374501429,1753326647239,-463.36,0.00019452,2]
[374501430,1753326647249,-114.48505149,0.00019452,2]
[374501431,1753326647345,-18.88254294,0.00019452,2]
[374501432,1753326647450,-279.41166736,0.00019452,2]
[374501433,1753326647464,-47.22073821,0.00019452,2]
[374501434,1753326647473,-460.0,0.00019452,2]
[374501435,1753326647482,-460.0,0.00019452,2]
[374501436,1753326647491,-460.0,0.00019452,2]
[374501437,1753326647501,-461.70991136,0.00019452,2]
[374501438,1753326647511,-460.0,0.00019452,2]
[374501439,1753326647520,-460.0,0.00019452,2]
[374501440,1753326647529,-1444.79816276,0.00019452,2]
[374501441,1753326647543,-492.52183724,0.00019452,2]
[374501442,1753326647553,-466.02178502,0.00019452,2]
[374501443,1753326647562,-466.28586178,0.00019452,2]
[374501444,1753326647573,-539.91,0.00019452,2]
[374501445,1753326647583,-460.0,0.00019452,2]
[374501446,1753326647592,-470.02887544,0.00019452,2]
[374501447,1753326647601,-460.0,0.00019452,2]
[374501448,1753326647611,-460.0,0.00019452,2]
[374501450,1753326647619,-460.0,0.00019452,2]
[374501451,1753326647628,-461.19903854,0.00019452,2]
[374501452,1753326647639,-460.0,0.00019452,2]
[374501453,1753326647649,-1711.31,0.00019452,2]
[374501454,1753326647658,-465.75052915,0.00019452,2]
[374501455,1753326647667,-690.55,0.00019452,2]
[374501456,1753326647678,-1189.16,0.00019452,2]
[374501457,1753326647688,-5513.69,0.00019452,2]
[374501458,1753326647699,-460.0,0.00019452,2]
[374501459,1753326647710,-472.63458133,0.00019452,2]
[374501460,1753326647720,-460.0,0.00019452,2]
[374501461,1753326647729,-460.0,0.00019452,2]
[374501462,1753326647738,-460.0,0.00019452,2]
[374501463,1753326647747,-460.0,0.00019452,2]
[374501464,1753326647756,-460.0,0.00019452,2]
[374501465,1753326647766,-460.0,0.00019452,2]
[374501466,1753326647775,-460.0,0.00019452,2]
[374501467,1753326647785,-460.0,0.00019452,2]
[374501468,1753326647795,-460.0,0.00019452,2]
[374501469,1753326647804,-460.0,0.00019452,2]
[374501470,1753326647814,-460.0,0.00019452,2]
[374501471,1753326647824,-772.74,0.00019452,2]
[374501472,1753326647833,-460.0,0.00019452,2]
[374501473,1753326647842,-460.0,0.00019452,2]
[374501474,1753326647852,-460.0,0.00019452,2]
[374501475,1753326647861,-291.24177804,0.00019452,2]
[374501476,1753326647871,-460.0,0.00019452,2]
[374501477,1753326647881,-465.83268893,0.00019452,2]
[374501478,1753326647890,-424.39711894,0.00019452,2]
[374501479,1753326647899,-460.0,0.00019452,2]
[374501480,1753326647909,-460.0,0.00019452,2]
[374501481,1753326647918,-460.0,0.00019452,2]
[374501482,1753326647927,-460.0,0.00019452,2]
[374501483,1753326647937,-460.0,0.00019452,2]
[374501484,1753326647947,-460.0,0.00019452,2]
[374501485,1753326647956,-469.59264407,0.00019452,2]
[374501486,1753326647965,-460.0,0.00019452,2]
[374501487,1753326647974,-219.99750344,0.00019452,2]
[374501488,1753326647984,-460.83031915,0.00019452,2]
[374501489,1753326647993,-460.0,0.00019452,2]
[374501490,1753326648002,-500.0,0.00019452,2]
[374501491,1753326648011,-500.0,0.00019473,2]
[374501492,1753326648020,-574.07447899,0.00019473,2]
[374501493,1753326648029,-249.19020882,0.00019473,2]
[374501494,1753326648039,-633.52233795,0.00019473,2]
[374501495,1753326648049,-501.52123984,0.00019473,2]
[374501496,1753326648058,-500.0,0.00019473,2]
[374501497,1753326648067,-150.0,0.00019585,2]
[374501498,1753326648078,-171.0,0.00019589,3]
[374501499,1753326648087,-943.59553754,0.00019638,2]
[374501500,1753326648097,-98.66316327,0.00019655,2]
[374501501,1753326648112,-81.08518904,0.00019655,2]
[374501502,1753326648121,-163.0,0.000197,2]
[374501503,1753326648132,-160.0,0.0001972,2]
[374501504,1753326648141,-214.7213231,0.0001972,2]
[374501505,1753326648151,-840.23756827,0.0001972,2]
[374501506,1753326648160,-476.79463412,0.00019722,2]
[374501507,1753326648170,-160.0,0.00019722,2]
[374501508,1753326648183,-231.16387093,0.00019722,2]
[374501509,1753326648194,-5978.40268596,0.00019722,2]
[374501510,1753326648208,-6646.40770204,0.00019722,2]
[374501511,1753326648217,-215.88777038,0.00019722,2]
[374501512,1753326648227,-526.24749348,0.00019722,2]
[374501513,1753326648236,-160.0,0.00019722,2]
[374501514,1753326648246,-500.0,0.00019726,2]
[374501515,1753326648255,-151.0,0.00019726,2]
[374501516,1753326648265,-200.21628815,0.00019726,2]
[374501517,1753326648275,-730.0,0.00019726,2]
[374501518,1753326648284,-993.0,0.00019726,2]
[374501519,1753326648294,-161.27842843,0.00019726,2]
[374501520,1753326648303,-158.697227,0.00019726,2]
[374501521,1753326648312,-158.697227,0.00019726,2]
[374501522,1753326648321,-158.697227,0.00019726,2]
[374501523,1753326648331,-158.697227,0.00019726,2]
[374501524,1753326648340,-269.164669,0.00019726,2]
[374501525,1753326648350,-269.164669,0.00019726,2]
[374501526,1753326648359,-151.0,0.00019726,2]
[374501527,1753326648368,-460.0,0.00019726,2]
[374501528,1753326648377,-460.0,0.00019726,2]
[374501529,1753326648386,-151.0,0.00019726,2]
[374501530,1753326648395,-151.0,0.00019726,2]
[374501531,1753326648405,-228.065565,0.00019726,2]